bitfinex/quotes_ETHUSD_20241006
["timestamp","ask_amount","ask_price","bid_price","bid_amount"]
[1728232659339,3.27266,2444.5,2444.2,0.7561]
[1728232660006,3.27292,2444.3,2444.2,0.7561]
[1728232660518,6.54544,2444.5,2444.2,0.7561]
[1728232660925,3.27266,2444.5,2444.2,0.7561]
[1728232661125,3.27289,2444.4,2444.2,0.7561]
[1728232661464,3.27292,2444.3,2444.1,1.71445989]
[1728232663237,3.27272,2444.5,2444.1,1.71445989]
[1728232663545,6.5455,2444.5,2444.1,1.71445989]
[1728232664043,3.27279,2444.4,2444.1,1.71445989]
[1728232664244,3.27279,2444.4,2444.2,1.71445989]
[1728232664404,6.5455,2444.5,2444.2,1.71445989]
[1728232664901,3.27272,2444.5,2444.2,1.71445989]
[1728232665307,6.54544,2444.5,2444.2,1.71445989]
[1728232666540,3.27279,2444.4,2444.2,1.71445989]
[1728232666840,3.27272,2444.5,2444.2,1.71445989]
[1728232667342,6.54549,2444.5,2444.2,1.71445989]
[1728232669148,6.54545,2444.5,2444.2,1.71445989]
[1728232669444,3.27272,2444.5,2444.2,1.71445989]
[1728232669643,6.54545,2444.5,2444.2,1.71445989]
[1728232669808,6.54548,2444.5,2444.2,1.71445989]
[1728232670009,3.27272,2444.5,2444.2,1.71445989]
[1728232674963,6.54546,2444.5,2444.2,1.71445989]
[1728232676276,3.27272,2444.5,2444.2,1.71445989]
[1728232676429,6.54545,2444.5,2444.2,1.71445989]
[1728232676761,3.27272,2444.5,2444.2,1.71445989]
[1728232676949,3.27272,2444.5,2444.3,1.71445989]
[1728232677674,3.27272,2444.5,2444.2,1.71445989]
[1728232677675,3.27278,2444.4,2444.2,1.71445989]
[1728232678037,3.27278,2444.4,2444.3,1.71445989]
[1728232678242,3.27278,2444.4,2444.2,1.71445989]
[1728232679061,3.27292,2444.3,2444.2,1.71445989]
[1728232679433,4.03789,2444.4,2444.1,1.71445989]
[1728232679751,3.27305,2444.2,2444.0,2.47385989]
[1728232680251,3.27305,2444.2,2444.1,1.71445989]
[1728232680443,3.27305,2444.2,2444.0,1.71445989]
[1728232680637,3.27318,2444.1,2444.0,1.71445989]
[1728232680945,3.27318,2444.1,2443.9,1.71445989]
[1728232683549,3.27318,2444.1,2444.0,1.71445989]
[1728232684081,3.27318,2444.1,2443.9,1.71445989]
[1728232684435,3.27318,2444.1,2444.0,1.71445989]
[1728232684634,3.27318,2444.1,2443.9,1.71445989]
[1728232685080,3.27332,2444.0,2443.9,1.71445989]
[1728232685473,3.27332,2444.0,2443.8,1.71445989]
[1728232685978,3.27332,2444.0,2443.9,1.71445989]
[1728232686735,3.27332,2444.0,2443.8,1.71445989]
[1728232686973,3.27359,2443.8,2443.7,1.71445989]
[1728232687143,3.27372,2443.7,2443.6,1.71445989]
[1728232687473,3.27372,2443.7,2443.4,2.53545989]
[1728232687678,0.8249,2443.6,2443.3,1.71445989]
[1728232687914,3.27412,2443.4,2443.2,1.71445989]
[1728232688057,3.27426,2443.3,2443.1,1.71445989]
[1728232688369,3.27439,2443.2,2442.9,1.71445989]
[1728232688569,4.09929,2443.2,2442.9,1.71445989]
[1728232688954,0.8249,2443.2,2442.9,1.71445989]
[1728232689385,3.27454,2443.1,2442.8,1.71445989]
[1728232689795,3.27454,2443.1,2442.7,1.71445989]
[1728232690492,3.27454,2443.1,2442.6,5.81063989]
[1728232691204,6.54915,2443.1,2442.7,1.71445989]
[1728232691385,3.27454,2443.1,2442.6,2.53545989]
[1728232691557,3.27475,2443.0,2442.6,2.53545989]
[1728232692459,3.27475,2443.0,2442.6,0.821]
[1728232693058,3.27454,2443.1,2442.6,0.821]
[1728232693260,0.8249,2443.2,2442.6,1.94422802]
[1728232693559,3.27414,2443.4,2442.9,0.821]
[1728232693780,10.72351,2443.9,2443.2,3.27438]
[1728232693781,3.27381,2443.7,2443.2,3.27438]
[1728232694094,3.27381,2443.7,2442.7,4.83858424]
[1728232694095,6.54765,2443.7,2443.3,1.148438]
[1728232694270,3.27386,2443.6,2443.3,0.821]
[1728232694469,0.8249,2444.0,2443.3,0.821]
[1728232694696,3.27326,2444.1,2443.5,0.821]
[1728232694911,4.09806,2444.2,2443.6,3.683241]
[1728232695113,3.27327,2444.1,2443.6,0.409501]
[1728232695394,3.27299,2444.3,2443.7,0.4504481]
[1728232695597,3.27299,2444.3,2443.5,4.09491]
[1728232695773,3.27307,2444.2,2443.6,3.27377]
[1728232696662,3.27299,2444.3,2443.5,4.0949]
[1728232696876,3.27319,2444.1,2443.6,3.27384]
[1728232697083,3.27319,2444.1,2443.6,4.010714]
[1728232699062,6.54603,2444.3,2443.6,0.736874]
[1728232699264,3.27306,2444.2,2443.8,0.7679]
[1728232700160,3.27299,2444.3,2443.8,0.7679]
[1728232700402,3.27318,2444.1,2443.8,0.7679]
[1728232700957,3.27307,2444.2,2443.8,0.7679]
[1728232701511,3.27307,2444.2,2443.8,1.2457614]
[1728232701512,3.12307,2444.2,2443.8,1.2457614]
[1728232701865,3.27296,2444.3,2443.8,4.54371176]
[1728232702216,3.27272,2444.5,2444.0,0.7679]
[1728232702510,3.27272,2444.5,2444.0,4.06984087]
[1728232702663,3.27272,2444.5,2444.1,0.7679]
[1728232702869,3.27272,2444.5,2444.2,0.40698409]
[1728232703760,3.27272,2444.5,2444.1,0.7679]
[1728232705325,3.27283,2444.4,2444.1,0.7679]
[1728232705531,3.2732,2444.1,2443.9,0.7926]
[1728232705830,3.27316,2444.2,2443.9,0.7926]
[1728232706015,3.27327,2444.1,2443.9,0.7926]
[1728232706320,4.04924,2444.4,2443.9,0.7926]
[1728232706524,3.27284,2444.4,2443.9,0.7926]
[1728232706760,3.27284,2444.4,2444.0,0.406611]
[1728232707345,6.54572,2444.4,2444.1,0.7926]
[1728232708352,3.27292,2444.3,2444.1,0.7926]
[1728232709058,3.27284,2444.4,2444.1,0.7926]
[1728232710124,3.27305,2444.2,2444.1,0.7926]
[1728232710324,3.27305,2444.2,2443.8,0.7926]
[1728232710325,3.27319,2444.1,2443.8,0.7926]
[1728232710524,3.27319,2444.1,2443.8,1.2729284]
[1728232712837,3.27319,2444.1,2443.6,4.010684]
[1728232712838,3.27355,2443.9,2443.6,0.736874]
[1728232713039,3.27355,2443.9,2443.5,0.7926]
[1728232714183,4.04976,2444.0,2443.5,0.7926]
[1728232714386,3.27336,2444.0,2443.5,0.7926]
[1728232714551,6.54679,2444.0,2443.5,0.7926]
[1728232714750,3.27336,2444.0,2443.6,0.406664]
[1728232715990,3.27347,2443.9,2443.6,0.406664]
[1728232717292,3.27336,2444.0,2443.6,0.406664]
[1728232720876,3.27357,2443.9,2443.5,0.7926]
[1728232721400,3.27336,2444.0,2443.5,4.06656]
[1728232721752,3.27336,2444.0,2443.5,4.06658]
[1728232723399,3.27336,2444.0,2443.5,0.7926]
[1728232723695,6.54677,2444.0,2443.5,0.7926]
[1728232723902,3.27336,2444.0,2443.5,1.8847527]
[1728232724396,3.27347,2443.9,2443.5,1.8847527]
[1728232724700,3.27336,2444.0,2443.5,3.59921259]
[1728232724864,3.27336,2444.0,2443.5,5.1587227]
[1728232725397,3.27336,2444.0,2443.5,6.87318259]
[1728232725774,6.5468,2444.0,2443.5,3.59921259]
[1728232726101,3.27336,2444.0,2443.5,3.59921259]
[1728232726393,3.27336,2444.0,2443.5,1.8847527]
[1728232726580,3.27346,2443.9,2443.5,3.59921259]
[1728232726781,3.27336,2444.0,2443.6,0.68732526]
[1728232726976,3.27336,2444.0,2443.5,3.59921259]
[1728232727358,6.54677,2444.0,2443.5,1.8847527]
[1728232727579,3.27347,2443.9,2443.5,0.7926]
[1728232728280,3.27336,2444.0,2443.5,0.7926]
[1728232728862,3.27336,2444.0,2443.5,4.06659]
[1728232729295,3.27336,2444.0,2443.3,2.52155989]
[1728232729296,3.27367,2443.8,2443.3,2.52155989]
[1728232729495,3.27385,2443.7,2443.3,0.8071]
[1728232731047,3.27367,2443.8,2443.3,0.8071]
[1728232731243,6.54735,2443.8,2443.3,0.8071]
[1728232731833,3.27367,2443.8,2443.3,0.8071]
[1728232732210,3.27367,2443.8,2443.3,4.08134]
[1728232732533,3.27367,2443.8,2443.4,3.27412]
[1728232732840,3.27367,2443.8,2443.5,0.8071]
[1728232735601,3.27353,2443.9,2443.5,0.8071]
[1728232736314,3.2734,2444.0,2443.5,0.8071]
[1728232736730,6.5468,2444.0,2443.5,0.8071]
[1728232737051,6.5468,2444.0,2443.5,1.71305958]
[1728232737249,3.2734,2444.0,2443.6,0.8071]
[1728232738026,3.27323,2444.1,2443.6,3.27381]
[1728232738346,3.27323,2444.1,2443.7,1.72390895]
[1728232739332,3.27323,2444.1,2443.7,3.43836884]
[1728232740309,3.27314,2444.2,2443.7,3.43836884]
[1728232740310,3.27332,2444.0,2443.7,3.43836884]
[1728232742354,3.27332,2444.0,2443.8,1.71445989]
[1728232743440,3.27345,2443.9,2443.8,1.71445989]
[1728232744037,3.27332,2444.0,2443.8,1.71445989]
[1728232744718,3.27332,2444.0,2443.7,3.43836884]
[1728232744915,3.27332,2444.0,2443.8,1.71445989]
[1728232746455,3.27332,2444.0,2443.7,3.43836884]
[1728232746838,3.27345,2443.9,2443.7,3.43836884]
[1728232747019,3.27345,2443.9,2443.8,1.71445989]
[1728232747347,3.27332,2444.0,2443.8,1.71445989]
[1728232752548,3.27332,2444.0,2443.7,3.43836884]
[1728232754671,3.27318,2444.1,2443.7,3.43836884]
[1728232754868,3.27313,2444.2,2443.8,2.60028932]
[1728232756890,3.27319,2444.1,2443.8,2.60028932]
[1728232759239,3.27293,2444.3,2443.9,1.71445989]
[1728232759496,3.27305,2444.2,2444.0,0.8026]
[1728232760800,4.0827,2444.6,2444.1,3.27318]
[1728232761002,3.2726,2444.6,2444.2,0.8026]
[1728232761166,11.53243,2444.8,2444.2,4.07557]
[1728232761167,4.08243,2444.8,2444.2,4.07557]
[1728232761363,3.27217,2444.9,2444.4,4.07537]
[1728232761662,3.27207,2445.0,2444.4,0.8026]
[1728232761866,3.27228,2444.8,2444.4,2.51705989]
[1728232762507,3.27228,2444.8,2444.4,0.85322983]
[1728232762798,3.27228,2444.8,2444.5,0.67467927]
[1728232764004,7.45,2445.6,2444.2,1.71445989]
[1728232764005,3.27211,2444.9,2444.2,1.71445989]
[1728232764224,3.27211,2444.9,2444.1,2.91546453]
[1728232764225,4.02817,2444.4,2444.1,1.71445989]
[1728232764420,3.27305,2444.2,2443.9,4.62992442]
[1728232764721,3.27305,2444.2,2444.0,2.17745233]
[1728232764877,3.27305,2444.2,2444.0,0.46299244]
[1728232766912,3.27293,2444.3,2444.0,0.46299244]
[1728232767812,3.27306,2444.2,2443.9,0.7699]
[1728232771403,7.30104,2444.4,2443.9,0.7699]
[1728232771616,3.27294,2444.3,2443.9,0.7699]
[1728232773195,4.02817,2444.4,2443.9,0.7699]
[1728232773394,7.30105,2444.4,2443.9,0.7699]
[1728232773594,4.02817,2444.4,2443.9,0.7699]
[1728232774268,4.02817,2444.4,2443.9,1.88757637]
[1728232775730,7.30103,2444.4,2443.9,1.88757637]
[1728232776026,3.273,2444.3,2443.9,0.7699]
[1728232776338,4.02816,2444.4,2443.9,0.7699]
[1728232776921,4.02816,2444.4,2443.9,2.48435989]
[1728232777129,4.02816,2444.4,2443.9,0.7699]
[1728232777993,4.02816,2444.4,2443.9,2.48435989]
[1728232778197,4.02816,2444.4,2443.9,0.7699]
[1728232779249,3.27286,2444.4,2443.9,5.75780989]
[1728232779444,3.27286,2444.4,2443.9,6.87547526]
[1728232780415,3.27286,2444.4,2444.0,1.71445989]
[1728232780613,3.27286,2444.4,2443.9,6.87547526]
[1728232780937,6.54572,2444.4,2444.0,1.71445989]
[1728232781135,3.27286,2444.4,2443.9,6.87547526]
[1728232781821,3.27286,2444.4,2444.0,1.71445989]
[1728232782021,3.27286,2444.4,2444.1,0.8187]
[1728232782223,3.27258,2444.6,2444.1,2.53315989]
[1728232782928,3.27258,2444.6,2444.2,1.71445989]
[1728232783632,3.27272,2444.5,2444.2,1.71445989]
[1728232783837,3.27272,2444.5,2444.1,2.53315989]
[1728232786539,0.8192,2444.8,2444.1,1.71445989]
[1728232786540,4.09861,2444.4,2444.1,1.71445989]
[1728232786851,4.09861,2444.4,2444.0,2.54765989]
[1728232786852,3.27294,2444.3,2444.0,2.54765989]
[1728232787223,4.09861,2444.4,2444.0,2.54765989]
[1728232787531,7.37148,2444.4,2444.0,2.54765989]
[1728232787934,3.27299,2444.3,2444.0,2.54765989]
[1728232789760,3.27299,2444.3,2444.0,1.71445989]
[1728232789959,3.27307,2444.2,2444.0,1.71445989]
[1728232790521,7.37151,2444.4,2444.0,1.71445989]
[1728232790948,0.8258,2444.4,2444.0,1.71445989]
[1728232791269,0.8258,2444.4,2443.8,1.71445989]
[1728232791270,3.2734,2444.0,2443.8,1.71445989]
[1728232792740,3.2734,2444.0,2443.9,1.71445989]
[1728232792954,3.27319,2444.1,2443.9,1.71445989]
[1728232793177,3.27309,2444.2,2443.9,1.71445989]
[1728232794874,3.27309,2444.2,2443.9,2.51655989]
[1728232795246,4.09865,2444.4,2444.0,1.71445989]
[1728232795446,7.37156,2444.4,2444.0,1.71445989]
[1728232795644,4.09865,2444.4,2444.0,1.71445989]
[1728232795970,7.37151,2444.4,2444.0,1.71445989]
[1728232796174,3.27267,2444.5,2444.1,1.71445989]
[1728232796475,3.27267,2444.5,2444.0,1.71445989]
[1728232796678,3.27267,2444.5,2444.1,1.71445989]
[1728232798136,3.27284,2444.4,2444.1,1.71445989]
[1728232800565,0.7656,2444.6,2444.2,0.807]
[1728232800776,4.0255,2444.9,2444.3,5.8681751]
[1728232800990,4.0255,2444.9,2444.5,0.807]
[1728232800991,3.2722,2444.9,2444.5,0.807]
[1728232801483,3.2722,2444.9,2444.5,2.52145989]
[1728232801684,6.5444,2444.9,2444.5,2.52145989]
[1728232802178,3.27225,2444.8,2444.5,2.52145989]
[1728232802378,3.27225,2444.8,2444.5,1.35389881]
[1728232802991,3.27225,2444.8,2444.5,3.0683587]
[1728232803284,3.2724,2444.7,2444.5,1.71445989]
[1728232803581,6.54489,2444.7,2444.4,0.80142757]
[1728232803883,3.2724,2444.7,2444.4,0.80142757]
[1728232805353,3.2722,2444.9,2444.5,0.33228875]
[1728232805666,3.27226,2444.8,2444.5,0.33228875]
[1728232806686,3.27251,2444.6,2444.5,0.33228875]
[1728232806986,3.27241,2444.7,2444.4,0.80142757]
[1728232807807,3.27225,2444.8,2444.4,0.80142757]
[1728232808302,3.27225,2444.8,2444.4,2.51588746]
[1728232808665,3.27218,2444.9,2444.5,0.811]
[1728232808864,3.27193,2445.1,2444.7,0.811]
[1728232809711,3.27213,2444.9,2444.7,0.811]
[1728232809862,3.27213,2444.9,2444.6,0.66433728]
[1728232810266,3.27213,2444.9,2444.5,0.811]
[1728232813579,3.27238,2444.7,2444.5,0.811]
[1728232813784,3.27238,2444.7,2444.3,1.71445989]
[1728232814077,3.27238,2444.7,2444.2,5.79837989]
[1728232814279,3.27238,2444.7,2444.3,1.71445989]
[1728232814913,6.54436,2444.9,2444.3,1.71445989]
[1728232815213,6.54436,2444.9,2444.4,0.811]
[1728232815214,3.27213,2444.9,2444.4,0.811]
[1728232815782,3.27213,2444.9,2444.4,4.08378]
[1728232816299,3.27213,2444.9,2444.4,5.79823989]
[1728232816484,3.27213,2444.9,2444.4,5.28458982]
[1728232817109,3.27213,2444.9,2444.4,6.99904971]
[1728232817272,3.27191,2445.1,2444.5,4.08355]
[1728232817472,3.27191,2445.1,2444.6,0.811]
[1728232817779,3.27191,2445.1,2444.7,0.811]
[1728232817982,3.27191,2445.1,2444.7,1.71804299]
[1728232818511,3.272,2445.0,2444.7,1.71804299]
[1728232818706,3.272,2445.0,2444.7,0.811]
[1728232818898,3.27191,2445.1,2444.7,0.811]
[1728232819809,3.27199,2445.0,2444.7,0.811]
[1728232820007,3.27191,2445.1,2444.7,0.811]
[1728232820574,3.27167,2445.3,2444.7,0.811]
[1728232820886,6.54333,2445.3,2444.8,0.8139]
[1728232821206,3.27174,2445.2,2444.8,0.8139]
[1728232823819,3.27166,2445.3,2444.8,0.8139]
[1728232824025,0.64051074,2445.5,2445.0,0.7697]
[1728232824196,0.7836,2445.8,2445.3,0.7697]
[1728232824399,0.7836,2446.0,2445.3,0.7697]
[1728232824616,3.27113,2445.7,2445.3,1.18202155]
[1728232825736,3.27083,2445.9,2445.3,4.45349155]
[1728232825898,3.27083,2445.9,2445.3,1.18202155]
[1728232825899,3.27092,2445.8,2445.3,1.18202155]
[1728232826797,3.27083,2445.9,2445.3,1.18202155]
[1728232826798,3.27105,2445.7,2445.3,1.18202155]
[1728232827141,3.27105,2445.7,2445.3,0.7697]
[1728232827711,3.27083,2445.9,2445.4,3.27142]
[1728232827924,6.54169,2445.9,2445.4,3.27142]
[1728232828308,3.27083,2445.9,2445.4,3.27142]
[1728232828517,6.54169,2445.9,2445.4,4.002697]
[1728232828696,6.54168,2445.9,2445.4,4.002697]
[1728232828920,3.27083,2445.9,2445.4,0.731277]
[1728232829107,3.27093,2445.8,2445.4,0.731277]
[1728232829306,3.12106,2445.7,2445.4,0.731277]
[1728232829916,3.12106,2445.7,2445.3,0.7697]
[1728232831235,3.27118,2445.6,2445.3,0.7697]
[1728232832136,3.90466,2445.7,2445.1,0.7697]
[1728232832433,3.27132,2445.5,2445.1,0.7697]
[1728232833005,6.54272,2445.5,2445.1,0.7697]
[1728232833538,3.27146,2445.4,2445.1,0.7697]
[1728232834053,3.27118,2445.6,2445.2,0.55]
[1728232834341,3.27112,2445.7,2445.2,3.8217]
[1728232834581,3.27112,2445.7,2445.3,0.45914]
[1728232834793,3.27112,2445.7,2445.4,0.7697]
[1728232836999,6.54224,2445.7,2445.4,0.7697]
[1728232837207,6.54227,2445.7,2445.4,0.7697]
[1728232837376,6.54224,2445.7,2445.4,0.7697]
[1728232838806,3.27112,2445.7,2445.4,0.7697]
[1728232839009,3.27131,2445.5,2445.4,0.7697]
[1728232839304,3.27118,2445.6,2445.4,0.7697]
[1728232839509,3.27112,2445.7,2445.4,0.7697]
[1728232840570,3.27118,2445.6,2445.4,0.7697]
[1728232841560,3.27118,2445.6,2445.2,1.3564]
[1728232841780,3.27118,2445.6,2445.2,2.14641]
[1728232842176,3.27112,2445.7,2445.2,2.14641]
[1728232842501,6.54227,2445.7,2445.2,2.14641]
[1728232842711,3.2712,2445.6,2445.2,1.3564]
[1728232843064,3.27112,2445.7,2445.2,1.3564]
[1728232843265,3.27112,2445.7,2445.2,4.62809]
[1728232843697,6.54228,2445.7,2445.2,4.62809]
[1728232843900,3.27112,2445.7,2445.2,4.62809]
[1728232844203,3.27112,2445.7,2445.2,5.21191334]
[1728232845307,3.27111,2445.7,2445.2,1.94022334]
[1728232845461,3.2712,2445.6,2445.2,1.94022334]
[1728232845683,3.27111,2445.7,2445.2,1.94022334]
[1728232846419,3.2712,2445.6,2445.2,1.94022334]
[1728232846622,6.54227,2445.7,2445.2,1.94022334]
[1728232847188,6.54227,2445.7,2445.2,1.3564]
[1728232847427,3.27131,2445.5,2445.2,1.3564]
[1728232847584,4.04901,2445.5,2445.1,0.55]
[1728232848799,7.3204,2445.5,2445.1,0.55]
[1728232849114,3.27148,2445.4,2445.1,0.55]
[1728232849478,4.04901,2445.5,2445.1,0.55]
[1728232849602,7.32044,2445.5,2445.1,0.55]
[1728232849788,3.27149,2445.4,2445.1,0.55]
[1728232851886,4.04901,2445.5,2445.1,0.55]
[1728232852721,0.7777,2445.5,2444.8,1.71445989]
[1728232852942,3.2718,2445.2,2444.8,0.823]
[1728232854086,3.2718,2445.2,2444.9,0.55]
[1728232855020,3.27198,2445.0,2444.6,2.53745989]
[1728232855355,0.7777,2445.1,2444.6,4.0955]
[1728232855664,3.27198,2445.0,2444.7,0.58099599]
[1728232855810,3.27198,2445.0,2444.6,0.823]
[1728232856560,3.27198,2445.0,2444.7,0.55]
[1728232857165,0.7777,2445.1,2444.7,0.55]
[1728232857364,3.2718,2445.2,2444.7,0.55]
[1728232857567,6.5436,2445.2,2444.7,0.55]
[1728232858055,3.2718,2445.2,2444.7,0.55]
[1728232858266,3.27186,2445.1,2444.7,0.55]
[1728232859275,3.2718,2445.2,2444.7,0.55]
[1728232859429,3.2718,2445.2,2444.9,0.55]
[1728232860469,3.27185,2445.1,2444.9,0.55]
[1728232860674,3.27218,2444.9,2444.7,0.55]
[1728232861677,3.27225,2444.8,2444.7,0.55]
[1728232862170,0.8295,2444.7,2444.3,1.71445989]
[1728232862372,0.8295,2444.7,2444.2,1.71445989]
[1728232862373,3.27271,2444.5,2444.2,1.71445989]
[1728232863368,3.27271,2444.5,2444.3,0.55]
[1728232863537,3.27278,2444.4,2444.3,0.55]
[1728232864633,3.27297,2444.3,2444.2,0.55]
[1728232865631,3.27297,2444.3,2444.1,0.55]
[1728232865772,3.27297,2444.3,2444.1,2.26445989]
[1728232866174,3.27297,2444.3,2444.1,0.55]
[1728232866479,3.27297,2444.3,2444.0,2.26445989]
[1728232866816,3.27297,2444.3,2444.0,0.55]
[1728232867034,3.27278,2444.4,2444.0,0.55]
[1728232867224,3.27294,2444.3,2444.0,1.0717493]
[1728232868927,4.08104,2444.3,2444.0,0.55]
[1728232869078,3.27316,2444.2,2443.7,1.71445989]
[1728232869418,3.27385,2443.6,2443.4,1.71445989]
[1728232869579,3.27385,2443.6,2443.3,1.71445989]
[1728232869779,3.27385,2443.6,2443.1,1.71445989]
[1728232870076,3.27412,2443.4,2443.2,0.4658393]
[1728232870404,0.8081,2443.9,2443.0,2.51515989]
[1728232870716,3.27307,2444.2,2442.9,2.13979287]
[1728232870717,3.27466,2443.0,2442.9,1.71445989]
[1728232870877,3.27479,2442.9,2442.7,1.71445989]
[1728232871076,3.27466,2443.0,2442.6,1.71445989]
[1728232871396,3.27494,2442.8,2442.6,2.17995517]
[1728232871587,3.27494,2442.8,2442.6,0.46549528]
[1728232872286,3.27471,2443.0,2442.6,0.46549528]
[1728232872492,3.27471,2443.0,2442.4,0.8007]
[1728232872493,3.27471,2443.0,2442.5,0.55]
[1728232873884,3.27471,2443.0,2442.5,3.82532]
[1728232875737,7.35655,2443.4,2442.7,0.55]
[1728232875895,3.27421,2443.4,2443.1,0.55]
[1728232876230,3.27375,2443.7,2443.1,0.62003685]
[1728232876532,3.27373,2443.7,2443.4,0.55]
[1728232877230,3.27387,2443.6,2443.4,0.55]
[1728232878105,3.27399,2443.5,2443.4,0.55]
[1728232878626,3.27418,2443.4,2443.1,0.55]
[1728232878838,3.27418,2443.4,2442.7,3.27497]
[1728232878839,3.27439,2443.2,2442.9,0.55]
[1728232879004,3.27439,2443.2,2442.9,1.011997]
[1728232879328,3.27439,2443.2,2442.9,0.55]
[1728232879329,3.27454,2443.1,2442.9,0.55]
[1728232879695,3.27455,2443.1,2442.8,0.795]
[1728232880185,3.27439,2443.2,2442.8,0.795]
[1728232880835,3.27439,2443.2,2442.9,0.55]
[1728232882782,6.54837,2443.4,2442.9,0.55]
[1728232882979,3.27429,2443.3,2442.9,0.55]
[1728232884569,3.27442,2443.2,2442.9,0.55]
[1728232884879,3.27466,2443.0,2442.6,0.7953]
[1728232885088,3.27466,2443.0,2442.7,0.55]
[1728232885468,3.27455,2443.1,2442.7,0.55]
[1728232886698,3.27468,2443.0,2442.7,0.55]
[1728232888097,3.27453,2443.1,2442.7,0.55]
[1728232891807,3.27421,2443.4,2442.9,0.55]
[1728232892005,4.0733,2443.6,2443.1,0.55]
[1728232892218,3.2739,2443.6,2443.1,0.55]
[1728232892714,3.27386,2443.6,2443.3,0.55]
[1728232893811,6.54782,2443.6,2443.3,0.55]
[1728232893969,3.27386,2443.6,2443.3,0.55]
[1728232895095,3.27399,2443.5,2443.3,0.55]
[1728232895299,3.27412,2443.4,2443.3,0.55]
[1728232895501,3.27412,2443.4,2442.7,2.53679059]
[1728232895502,3.27412,2443.4,2443.1,0.55]
[1728232895706,3.274,2443.5,2443.1,0.55]
[1728232895707,3.27427,2443.3,2443.1,0.55]
[1728232896214,3.274,2443.5,2443.1,0.55]
[1728232896215,3.27417,2443.4,2443.1,0.55]
[1728232896385,3.27426,2443.3,2443.1,0.55]
[1728232896574,3.27416,2443.4,2443.1,0.55]
[1728232896991,3.27427,2443.3,2443.1,0.55]
[1728232898915,3.27427,2443.3,2443.0,0.7953]
[1728232898916,3.27439,2443.2,2443.0,0.7953]
[1728232899220,3.27439,2443.2,2442.8,1.3687]
[1728232899386,3.27439,2443.2,2442.8,1.70976869]
[1728232900013,0.8035,2443.4,2442.7,0.55]
[1728232900014,3.27463,2443.1,2442.7,0.55]
[1728232900831,3.27486,2442.9,2442.6,0.8187]
[1728232901206,3.27506,2442.7,2442.4,0.8187]
[1728232901514,3.27506,2442.7,2442.2,0.4097]
[1728232901721,3.27528,2442.6,2442.2,0.4097]
[1728232902532,3.27534,2442.5,2442.2,0.4097]
[1728232902822,3.27506,2442.7,2442.2,0.4097]
[1728232903031,6.55024,2442.7,2442.3,0.55]
[1728232903500,3.27506,2442.7,2442.3,0.55]
[1728232903704,6.55022,2442.7,2442.3,0.55]
[1728232904091,3.27506,2442.7,2442.2,0.55]
[1728232904290,0.8046,2442.6,2442.2,0.55]
[1728232905487,3.27506,2442.7,2442.2,0.55]
[1728232905690,6.55019,2442.7,2442.2,0.55]
[1728232906212,3.27524,2442.6,2442.2,0.55]
[1728232907425,3.27506,2442.7,2442.2,0.55]
[1728232908201,3.27506,2442.7,2442.2,2.26445989]
[1728232908398,6.55021,2442.7,2442.2,2.26445989]
[1728232908626,3.27506,2442.7,2442.2,2.26445989]
[1728232908830,3.2752,2442.6,2442.2,2.26445989]
[1728232909535,3.27506,2442.7,2442.2,2.26445989]
[1728232909914,3.27528,2442.6,2442.2,2.26445989]
[1728232910445,3.27506,2442.7,2442.2,2.26445989]
[1728232910446,3.27535,2442.5,2442.2,2.26445989]
[1728232910647,3.27561,2442.3,2442.1,1.71445989]
[1728232910929,3.27561,2442.3,2442.0,1.71445989]
[1728232910930,3.27568,2442.3,2442.0,1.71445989]
[1728232911143,3.27568,2442.3,2442.0,2.26445989]
[1728232911307,3.27573,2442.2,2442.0,1.71445989]
[1728232911737,4.08028,2442.3,2442.0,1.71445989]
[1728232913202,3.27542,2442.5,2442.0,1.71445989]
[1728232913203,7.35546,2442.5,2442.0,1.71445989]
[1728232913493,4.08002,2442.5,2442.0,1.71445989]
[1728232913734,3.27561,2442.3,2442.0,1.71445989]
[1728232914502,0.8046,2442.1,2441.9,1.71445989]
[1728232915726,0.8046,2442.1,2441.9,5.1056939]
[1728232917739,0.8046,2442.4,2441.9,5.1056939]
[1728232918205,4.08013,2442.4,2441.9,3.39123401]
[1728232920209,0.8046,2442.4,2441.9,3.39123401]
[1728232920535,3.27561,2442.3,2441.8,1.71445989]
[1728232920732,3.27561,2442.3,2441.7,5.1056939]
[1728232920939,3.27575,2442.2,2441.7,5.1056939]
[1728232921348,3.27561,2442.3,2441.7,3.39123401]
[1728232921515,4.08007,2442.4,2441.7,4.19866366]
[1728232921720,3.27561,2442.3,2441.7,3.39123401]
[1728232921923,0.7661,2442.2,2441.7,3.39123401]
[1728232922322,3.27587,2442.1,2441.5,5.1056939]
[1728232922532,0.7661,2442.0,2441.5,3.39123401]
[1728232922705,4.04211,2442.0,2441.5,3.39123401]
[1728232923252,4.04211,2442.0,2441.7,3.39123401]
[1728232923463,0.7661,2442.0,2441.7,3.39123401]
[1728232926656,4.04211,2442.0,2441.7,3.39123401]
[1728232927513,10.72535,2442.5,2441.1,3.27711]
[1728232927514,0.7802,2441.8,2441.5,3.39123401]
[1728232927736,4.05654,2441.8,2441.5,3.39123401]
[1728232928328,0.7802,2441.8,2441.5,3.39123401]
[1728232929042,0.7802,2441.8,2441.7,3.39123401]
[1728232929821,0.7802,2442.0,2441.7,3.39123401]
[1728232930167,0.7802,2442.0,2441.9,3.39123401]
[1728232931557,0.7802,2442.2,2441.9,3.39123401]
[1728232931721,0.7802,2442.2,2442.1,3.39123401]
[1728232932613,3.27547,2442.4,2442.1,3.39123401]
[1728232932614,0.7802,2442.4,2442.1,3.39123401]